Cogmind - Beta 16 *** ADVENTURER MODE // 2025.11.03 @ 09:37:48 Player: Jefffff Result: Destroyed by H-77 Assassin with Coil Gun Performance ------------- Evolutions (6) 3000 Regions Visited (6) 1200 Robots Destroyed (63) 315 Value Destroyed (2306) 2306 Prototype IDs (14) 280 Alien Tech Used (0) 0 Bonus (904) 904 TOTAL SCORE: 8005 Bonus ------- Follower Combat Kills 104 Registered with UFD 300 Met Optimus in HQ 500 Cogmind --------- Core Integrity 0/1150 Matter 55/300 Energy 315/325 System Corruption 10% Temperature Cool (5) Movement Treading (152) Location -4/Armory Parts ------- > --- POWER (2) -------- Antimatter Reactor (fused) > --- PROPULSION (5) --- Heavy Treads Advanced Medium Treads Armored Leg > --- UTILITY (9) ------ Melee Analysis Suite Improved Target Analyzer Expert System (Blank) Advanced ECM Suite A0-MCA's Component Scanner > --- WEAPON (3) ------- Light Antimatter Cannon Light Antimatter Cannon > --- INVENTORY (5) ---- Light Nuclear Core Heavy Treads Improved Heat Sink Improved Target Analyzer Peak State ------------ > --- POWER ------------ Micro Fission Core Antimatter Reactor > --- PROPULSION ------- Heavy Treads Advanced Medium Treads Armored Leg Armored Leg > --- UTILITY ---------- Advanced Cooling System Humpback Improved Sensor Array Melee Analysis Suite Improved Target Analyzer Expert System Advanced ECM Suite A0-MCA's Component Scanner > --- WEAPON ----------- Railgun Light Antimatter Cannon Light Antimatter Cannon > --- INVENTORY -------- Light Nuclear Core Micro Fission Core Heavy Treads Flexi-carbon Leg Flexi-carbon Leg Armored Leg Improved Heat Sink Advanced Visual Processing Unit Advanced Visual Processing Unit Improved Target Analyzer Kinecellerator Light Antimatter Cannon Light Antimatter Cannon Light Antimatter Cannon Improved Remote Datajack Improved Remote Datajack Plasma Cutter Gravity Flail [Rating: 114] Favorites ----------- Power Fission Core Engine Light Ion Engine Power Core Fission Core Reactor Antimatter Reactor Propulsion Aluminum Leg Treads Heavy Treads Leg Aluminum Leg Wheel Armored Wheel Utility Large Storage Unit Device Improved Sensor Array Storage Large Storage Unit Processor A0-MCA's Component Scanner Hackware Hacking Suite Protection Light Armor Plating Weapon Light Assault Rifle Energy Gun Medium Laser Energy Cannon Beam Cannon Ballistic Gun Light Assault Rifle Ballistic Cannon Gauss Cannon Launcher Mini Grenade Launcher Special Weapon Plasma Cutter Impact Weapon Gravity Flail Build | -11 -10 -10 -7 -5 -4 -4 ------- Run | Yrd Mat Sub Scr Fac Fac Arm Slots Evolved 12 | . . . . 10 2 . Power 1 | . . . . 1 . . Propulsion 3 | . . . . 3 . . Utility 7 | . . . . 5 2 . Weapon 1 | . . . . 1 . . Parts Attached 76 | 9 8 5 12 9 8 25 Power 11 | 1 1 1 2 1 1 4 Engine 4 | 1 1 1 1 . . . Core 5 | . . . 1 1 1 2 Reactor 2 | . . . . . . 2 Propulsion 21 | 4 . . 4 3 4 6 Treads 7 | 1 . . . 1 2 3 Leg 11 | 2 . . 4 1 1 3 Wheel 3 | 1 . . . 1 1 . Hover . | . . . . . . . Flight . | . . . . . . . Utility 24 | 2 4 1 1 5 1 10 Device 10 | 1 1 . . 2 1 5 Storage 7 | 1 3 . . . . 3 Processor 4 | . . . 1 1 . 2 Hackware 1 | . . . . 1 . . Protection 2 | . . 1 . 1 . . Artifact . | . . . . . . . Weapon 20 | 2 3 3 5 . 2 5 Energy Gun 3 | 1 2 . . . . . Energy Cannon 2 | . . . 1 . 1 . Ballistic Gun 4 | 1 1 1 . . . 1 Ballistic Cannon 4 | . . . 2 . . 2 Launcher 2 | . . 1 1 . . . Special Weapon 1 | . . . 1 . . . Impact Weapon 4 | . . 1 . . 1 2 Slashing Weapon . | . . . . . . . Piercing Weapon . | . . . . . . . Special Melee Weapon . | . . . . . . . Unidentified Prototypes . | . . . . . . . Parts Lost 33 | . . 2 . 1 19 11 Power 8 | . . 1 . . 3 4 Propulsion 9 | . . . . . 7 2 Utility 10 | . . 1 . 1 4 4 Weapon 6 | . . . . . 5 1 Highest Loss Streak 19 | . . 1 . 1 19 4 To Critical Strikes 1 | . . . . . . 1 Average Backups 10 | 5 9 12 12 6 7 10 Power . | . 1 . 1 . . . Propulsion 1 | 3 1 1 1 1 2 1 Utility 4 | . 3 7 7 2 2 3 Weapon 3 | 1 4 4 2 1 1 3 Tool/Special . | . . . . . . . Unused Backups 39 | 1 7 . 13 . . 18 Power 5 | . . . 3 . . 2 Propulsion 6 | 1 . . 1 . . 4 Utility 14 | . 2 . 6 . . 6 Weapon 12 | . 5 . 3 . . 4 Tool/Special 2 | . . . . . . 2 Average Slot Usage (%) 93 | . 99 99 100 94 75 76 Engine 5 | . 13 13 2 . . 1 Core 5 | . . . 11 10 8 . Reactor 1 | . . . . . . 5 Treads 2 | . . . . 4 5 7 Leg 22 | . 28 28 28 17 13 9 Device 7 | . 14 5 . 8 7 15 Storage 10 | . 14 14 14 5 5 3 Processor 7 | . . . 6 10 10 15 Protection 3 | . . 8 7 4 3 . Energy Gun 3 | . 14 10 . . . . Energy Cannon 4 | . . . 11 5 4 . Ballistic Gun 6 | . 14 14 2 . . 3 Ballistic Cannon 5 | . . . 11 5 3 3 Impact Weapon 2 | . . 2 2 . 4 5 Peak Build Rating 114 | 9 10 10 31 63 75 114 Average Rating 38 | 6 9 8 24 60 62 94 On Entrance 19 | . 9 8 9 31 59 17 Avg Prop Armor Cover (%) 12 | 21 . . . 9 11 13 Naked Turns . | . . . . . . . Heaviest Build 251 | 12 29 29 43 53 57 251 Greatest Support 100 | 20 20 20 37 50 70 100 Greatest Overweight (x) 9 | . 1 1 1 1 6 9 Average Overweight (x) . | . . 1 . 1 . 1 Largest Inventory Capacity 35 | 8 15 15 15 15 15 35 Average Capacity 16 | 7 11 15 15 15 15 25 Most Carried 22 | 8 13 15 15 14 11 22 Average Carried 12 | 5 9 13 14 7 8 11 Final Capacity 15 | 8 15 15 15 15 15 5 Final Carried 15 | 5 13 15 15 10 4 5 Class Distribution -------------------- 70% | Mutant 14% | Hauler-Mutant 7% | Gladiator 4% | Derelict-Tank Dominant Class ---------------- Mutant | -10/Materials Mutant | -10/Subcaves Mutant | -7/Scraptown Derelict-Tank | -5/Factory Derelict-Mutant | -4/Factory Hauler-Mutant | -4/Armory Resources | -11 -10 -10 -7 -5 -4 -4 ----------- Run | Yrd Mat Sub Scr Fac Fac Arm Matter Collected 1801 | 313 143 23 321 102 7 892 Remotely . | . . . . . . . Salvage Created 2089 | 159 487 179 . 193 95 976 Parts 130 | 13 38 8 . 10 11 50 Haulers Intercepted 2 | . 2 . . . . . Recyclers Shooed 4 | . . . . 4 . . Parts Field Recycled . | . . . . . . . Retrieved Matter . | . . . . . . . Parts Self-Destructed 2 | . . 2 . . . . Prevented . | . . . . . . . Parts Restored . | . . . . . . . Kills | -11 -10 -10 -7 -5 -4 -4 ------- Run | Yrd Mat Sub Scr Fac Fac Arm Combat Hostiles Destroyed 43 | . 10 4 . 3 3 23 Guns 22 | . 10 4 . . . 8 Cannons 15 | . . . . 3 1 11 AOE 2 | . . . . . 2 . Classes Destroyed 15 | 3 4 1 . 4 . 3 Worker 4 | 1 2 . . 1 . . Builder 3 | . . . . 2 1 . Tunneler 4 | 4 . . . . . . Hauler 2 | . 2 . . . . . Recycler 1 | 1 . . . . . . Operator 1 | . . . . . . 1 Watcher 5 | . 3 . . . . 2 Swarmer 14 | . 6 . . . 1 7 Grunt 7 | . 4 . . . . 3 Sentry 2 | . . . . 1 . 1 Specialist 1 | . . . . . . 1 Hunter 3 | . . . . 1 . 2 Programmer 11 | . . . . 1 2 8 Heavy 1 | . . . . . . 1 Subdweller 4 | . . 4 . . . . Best Kill Streak 9 | 2 9 2 . 3 4 3 Combat Bots Only 3 | . 3 2 . 2 3 3 Max Kills in Single Turn 2 | 1 2 1 . 2 1 1 Gunslinging 1 | . 1 . . . . . Exploded 1 | . . . . . 1 . Melee . | . . . . . . . Uniques/NPCs Destroyed . | . . . . . . . Combat | -11 -10 -10 -7 -5 -4 -4 -------- Run | Yrd Mat Sub Scr Fac Fac Arm Hostile Shots Fired 762 | . 55 14 . 23 318 352 Missed 246 | . 15 1 . 7 94 129 Hits 516 | . 40 13 . 16 224 223 Projectile 516 | . 40 13 . 16 224 223 AOE 6 | . . 1 . . 3 2 Critical Strikes 25 | . . 1 . 2 13 9 Part Disruptions 2 | . . . . . . 2 Damage Taken 8072 | . 336 255 34 324 3712 3411 Core 1336 | . 71 69 6 34 900 256 Absorbed by Shields . | . . . . . . . Ignored by Resistances 2262 | . 103 72 10 88 1038 951 Regen/Repaired (Parts) 21 | . . . . . . 21 Core Remaining (%) 79 | 100 . . 41 96 . . Volleys Fired 183 | 23 43 21 8 26 14 48 Largest 3 | 2 2 2 2 2 2 3 Hottest 137 | 70 70 70 100 100 100 137 Shots Fired 338 | 46 86 38 11 45 18 94 Gun 215 | 46 86 34 . . . 49 Cannon 108 | . . . 6 42 15 45 Launcher 10 | . . 4 3 . 3 . Special 5 | . . . 2 3 . . Kinetic 207 | 23 43 17 3 23 4 94 Thermal 121 | 23 43 17 5 22 11 . Explosive 10 | . . 4 3 . 3 . Electromagnetic . | . . . . . . . Robot Hit Streak 30 | 11 11 30 . 16 4 30 Robot Miss Streak 2 | 2 2 . . 1 1 2 Penetration Max 1 | . . . . . . 1 Secondary Targets 4 | . 3 1 . . . . Max Gunslinging Chain 1 | . 1 1 . . . . Shots Hit Robots 250 | 34 57 29 . 31 12 87 Core Hits 102 | 9 27 12 . 13 9 32 Critical Kills 1 | . . . . . 1 . Critical Parts Destroyed 6 | 1 . . . . 1 4 Critical Strikes 24 | 3 1 2 . 5 2 11 Burn 5 | 2 1 2 . . . . Destroy 1 | 1 . . . . . . Blast 12 | . . . . 5 . 7 Smash 6 | . . . . . 2 4 Melee Attacks 62 | . . 18 . . 3 41 Impact 62 | . . 18 . . 3 41 Slashing . | . . . . . . . Piercing . | . . . . . . . Sneak Attacks 1 | . . . . . 1 . Combat Hostiles . | . . . . . . . Follow-up Attacks 4 | . . . . . . 4 Damage Inflicted 6233 | 346 589 304 . 768 751 3475 Guns 2318 | 346 589 304 . . . 1079 Cannons 2060 | . . . . 765 152 1143 Explosions 422 | . . . . . 422 . Melee 1389 | . . . . . 167 1222 Ramming 44 | . . . . 3 10 31 Kinetic 3177 | 123 229 115 . 488 . 2222 Thermal 1201 | 223 360 189 . 277 152 . Explosive 422 | . . . . . 422 . Electromagnetic . | . . . . . . . Impact 1389 | . . . . . 167 1222 Slashing . | . . . . . . . Piercing . | . . . . . . . Highest Corruption 10 | . . . . 2 1 10 Average Corruption 5 | . . . . 1 1 5 Corruption Purged . | . . . . . . . Corruption Blocked . | . . . . . . . Effects 54 | . . . . 1 1 52 Message Errors 10 | . . . . . 1 9 Matter Fused 16 | . . . . . . 16 Heat Flow Errors 4 | . . . . . . 4 Energy Discharges 6 | . . . . 1 . 5 Parts Rejected 1 | . . . . . . 1 Parts Fused 1 | . . . . . . 1 Data Loss (minor) 2 | . . . . . . 2 Data Loss (major) 4 | . . . . . . 4 Misfires 4 | . . . . . . 4 Alerts 2 | . . . . . . 2 Weapon Failures 4 | . . . . . . 4 Overload Shots . | . . . . . . . Overflow Damage 470 | . . . . 17 75 378 Projectiles 44 | . . . . 17 10 17 Explosions 29 | . . . . . 29 . Melee 397 | . . . . . 36 361 Knockbacks 13 | . . . . 2 . 11 Impact 7 | . . . . . . 7 Kinetic 6 | . . . . 2 . 4 Secondary . | . . . . . . . Self-Inflicted Damage 42 | . . 19 19 . 4 . Shots 2 | . . 1 1 . . . Rammed 5 | . . . . . 2 3 Targets Rammed 6 | . . . . 1 2 3 Kicked 1 | . . . . 1 . . Crushed . | . . . . . . . Highest Temperature 278 | 150 239 1 130 5 278 265 Average Temperature 60 | 56 60 1 52 3 63 90 Received Heat Transfer 1323 | . 165 36 9 9 1038 66 Siege Activations . | . . . . . . . Martial Activations . | . . . . . . . Shielding Activations . | . . . . . . . Robots Disrupted . | . . . . . . . Combat Hostiles . | . . . . . . . Robots Corrupted 4 | . . . . . . 4 Combat Hostiles 4 | . . . . . . 4 Parts Fried 7 | . . . . . . 7 Impact Corruptions 13 | . . . . . 1 12 Robots Melted . | . . . . . . . Combat Hostiles . | . . . . . . . Parts Melted 7 | 1 2 3 . . . 1 Heat Transferred 3419 | 814 1147 703 . 555 200 . Parts Sabotaged . | . . . . . . . Parts Stolen . | . . . . . . . Parts Stripped . | . . . . . . . Power Chain Reactions . | . . . . . . . Alert | -11 -10 -10 -7 -5 -4 -4 ------- Run | Yrd Mat Sub Scr Fac Fac Arm Maximum Alert Level . | . . . . . . . Low Security (%) 100 | 100 100 . . 100 100 100 Level 1 . | . . . . . . . Level 2 . | . . . . . . . Level 3 . | . . . . . . . Level 4 . | . . . . . . . Level 5 . | . . . . . . . High Security . | . . . . . . . Max Security . | . . . . . . . Peak Influence 120 | 5 99 . . 57 52 120 Initial 11 | . 2 . . . 11 . Average 19 | . 16 . . 14 6 26 Influence Increases 1385 | 30 322 . . 115 165 753 Destroy 0b10 Robot/C 820 | . 200 . . 60 60 500 Destroy 0b10 Robot/NC 100 | 30 35 . . 15 5 15 Destroy Leader 184 | . 40 . . 30 10 104 Allied During Kill 9 | . . . . . . 9 Successful Hack 42 | . 17 . . . . 25 Disable Machine 45 | . . . . . 9 36 Destroy Structure 80 | . . . . 10 36 34 Lose Combat Pursuer 105 | . 30 . . . 45 30 Influence Decreases 1306 | 25 327 . . 86 194 674 Entered New Map 21 | . 3 . . . 18 . Time Decay 1017 | 25 324 . . 76 54 538 Lost Part 218 | . . . . 10 122 86 Lost Ally 50 | . . . . . . 50 Squads Dispatched 12 | . . . . 1 2 9 Investigation 1 | . . . . . . 1 Extermination 5 | . . . . . . 5 Reinforcement 6 | . . . . 1 2 3 Assault . | . . . . . . . Garrison . | . . . . . . . Intercept . | . . . . . . . Searches Triggered . | . . . . . . . Construction Impeded 1 | . . . . 1 . . Haulers Reinforced 1 | . . . . . 1 . Active Scanning Responses . | . . . . . . . Cargo Convoy Interrupts . | . . . . . . . Stealth | -11 -10 -10 -7 -5 -4 -4 --------- Run | Yrd Mat Sub Scr Fac Fac Arm Distress Signals 6 | . 1 . . 1 . 4 Communications Jammed . | . . . . . . . Distress Signals . | . . . . . . . Times Spotted 81 | . 15 4 . 4 23 35 Peak Tracking Total 15 | . 3 2 . 2 15 4 Tactical Retreats 5 | . 1 . . . 2 2 ECM-based Alert Blocks 1 | . . . . . . 1 Traps | -11 -10 -10 -7 -5 -4 -4 ------- Run | Yrd Mat Sub Scr Fac Fac Arm Traps Triggered 6 | . 1 . . 1 . 4 Indirectly . | . . . . . . . Trap Hack Attempts . | . . . . . . . Triggered . | . . . . . . . Disarmed . | . . . . . . . Reprogrammed . | . . . . . . . Reused . | . . . . . . . Traps Extracted . | . . . . . . . Installed . | . . . . . . . Triggered . | . . . . . . . Machines | -11 -10 -10 -7 -5 -4 -4 ---------- Run | Yrd Mat Sub Scr Fac Fac Arm Machines Disabled 9 | . . . 4 . 1 4 Max in Single Turn 2 | . . . 2 . 1 1 Machines Repaired . | . . . . . . . Machines Dismantled . | . . . . . . . Machines Sabotaged . | . . . . . . . Overloaded Fab Kills . | . . . . . . . Hacking | -11 -10 -10 -7 -5 -4 -4 --------- Run | Yrd Mat Sub Scr Fac Fac Arm Machines Accessed 10 | . 4 . 3 . . 3 Terminals 5 | . 3 . . . . 2 Fabricators . | . . . . . . . Repair Stations 1 | . . . . . . 1 Recycling Units 1 | . 1 . . . . . Scanalyzers . | . . . . . . . Garrison Access . | . . . . . . . Total Hacks 31 | . 8 . 14 . . 9 Successful 27 | . 8 . 14 . . 5 Failed 4 | . . . . . . 4 Catastrophic 2 | . . . . . . 2 Database Lockouts . | . . . . . . . Manual 12 | . 7 . . . . 5 Terminals 12 | . 7 . . . . 5 Fabricators . | . . . . . . . Repair Stations 4 | . . . . . . 4 Recycling Units 1 | . 1 . . . . . Scanalyzers . | . . . . . . . Garrison Access . | . . . . . . . Terminal Hacks 17 | . 2 . 14 . . 1 Record 10 | . . . 10 . . . Part Schematic 1 | . 1 . . . . . Robot Analysis 4 | . . . 4 . . . Prototype ID Bank 1 | . 1 . . . . . Unreport Threat 1 | . . . . . . 1 Fabricator Hacks . | . . . . . . . Repair Station Hacks 3 | . . . . . . 3 Scan Component 1 | . . . . . . 1 Repair 1 | . . . . . . 1 Refit 1 | . . . . . . 1 Recycling Unit Hacks 1 | . 1 . . . . . Report Inventory 1 | . 1 . . . . . Scanalyzer . | . . . . . . . Garrison Access Hacks . | . . . . . . . Unauthorized Hacks 6 | . 5 . . . . 1 Terminals 6 | . 5 . . . . 1 Track 1 | . 1 . . . . . Botnet 4 | . 3 . . . . 1 Operators 1 | . 1 . . . . . Fabricators . | . . . . . . . Repair Stations . | . . . . . . . Recycling Units . | . . . . . . . Scanalyzers . | . . . . . . . Garrison Access . | . . . . . . . Data Cores Recovered . | . . . . . . . Used . | . . . . . . . Hacking Detections 6 | . 3 . . . . 3 Full Trace Events 1 | . . . . . . 1 Feedback Events 1 | . . . . . . 1 Corruption 1 | . . . . . . 1 Feedback Blocked . | . . . . . . . Robot Schematics Acquired . | . . . . . . . Robots Built . | . . . . . . . Authchips . | . . . . . . . Time . | . . . . . . . Total Robot Build Rating . | . . . . . . . Part Schematics Acquired 1 | . 1 . . . . . Parts Built . | . . . . . . . Authchips . | . . . . . . . Time . | . . . . . . . Total Part Build Rating . | . . . . . . . Part Studies Acquired . | . . . . . . . Parts Repaired 1 | . . . . . . 1 Time 32 | . . . . . . 32 Parts Recycled . | . . . . . . . Recycled Matter . | . . . . . . . Retrieved Matter . | . . . . . . . Retrieved Components . | . . . . . . . Parts Scanalyzed . | . . . . . . . Part Schematics Acquired . | . . . . . . . Parts Damaged . | . . . . . . . Bothacking | -11 -10 -10 -7 -5 -4 -4 ------------ Run | Yrd Mat Sub Scr Fac Fac Arm Used RIF Installer . | . . . . . . . Robots Hacked . | . . . . . . . Non-combat . | . . . . . . . Combat . | . . . . . . . Robot Hacks Applied . | . . . . . . . Relay Couplers Released . | . . . . . . . Fabnet Peak Effective % . | . . . . . . . Robots Rewired 3 | . . . . . . 3 Allies Hacked . | . . . . . . . Hacks Repelled . | . . . . . . . Allies | -11 -10 -10 -7 -5 -4 -4 -------- Run | Yrd Mat Sub Scr Fac Fac Arm Total Allies 3 | . . . . . . 3 Largest Group 3 | . . . . . . 3 Highest-Rated Group 141 | . . . . . . 141 Highest-Rated Ally 47 | . . . . . . 47 Total Orders . | . . . . . . . Ally Attacks 10 | . . . . . . 10 Total Damage 281 | . . . . . . 281 Kills 2 | . . . . . . 2 Allies Corrupted . | . . . . . . . Allies Melted 3 | . . . 3 . . . Intel | -11 -10 -10 -7 -5 -4 -4 ------- Run | Yrd Mat Sub Scr Fac Fac Arm Active Infowar (turns) 3729 | 49 1463 311 . 244 . 1662 Sensors 2393 | . 176 311 . 244 . 1662 Terrain 1336 | 49 1287 . . . . . ECM 639 | . . . . . . 639 Robot Analysis Total 4 | . . . 4 . . . Derelict Logs Recovered . | . . . . . . . Drone Launches . | . . . . . . . Drone Recoveries . | . . . . . . . Exploration | -11 -10 -10 -7 -5 -4 -4 ------------- Run | Yrd Mat Sub Scr Fac Fac Arm Turns Passed 7737 | 172 1463 839 2903 363 264 1733 Spaces Moved 3565 | 75 744 359 1513 125 165 584 Core 80 | 2 . . . . 4 74 Treads 267 | . . . . . . 267 Legs 3140 | 50 744 359 1513 125 106 243 Wheels 78 | 23 . . . . 55 . Hover . | . . . . . . . Flight . | . . . . . . . Fastest Speed 50 | 50 120 190 125 193 107 50 Average Speed 179 | 112 146 190 183 193 127 223 Slowest Speed 610 | 120 190 190 205 193 350 610 Overloaded Moves . | . . . . . . . Propulsion Burnouts . | . . . . . . . Robots Hopped . | . . . . . . . Potential Cave-ins 4 | . . . 4 . . . Cave-ins Triggered . | . . . . . . . Exploration Rate (%) 33 | 7 87 14 88 4 9 22 Regions Visited 6 Branch Regions 3 Pre-discovered Areas . | . . . . . . . Known Exits Taken 1 | . . . 1 . . . Unknown Exits Taken 5 | 1 1 1 . 1 1 . Scrap Searched 6 | . . 1 5 . . . Spaces Dug 91 | . . 43 33 2 3 10 Terrain Destroyed 135 | . . 43 41 8 20 23 Melee 15 | . . 7 . . . 8 Projectile 27 | . . . . 8 4 15 AOE 93 | . . 36 41 . 16 . Terrain Rammed . | . . . . . . . Walls Destroyed . | . . . . . . . Machines Disabled . | . . . . . . . Actions | -11 -10 -10 -7 -5 -4 -4 --------- Run | Yrd Mat Sub Scr Fac Fac Arm Total 4510 | 120 1047 448 1643 198 195 859 Wait 449 | . 222 38 62 32 . 95 Move 3559 | 74 743 358 1512 124 164 584 Hop . | . . . . . . . Pick Up 84 | 11 15 4 19 5 1 29 Fast Attach 26 | 4 2 . . . 1 19 Attach 32 | 3 . 2 . 10 6 11 Detach 2 | . . . . . . 2 Swap 37 | 2 8 6 15 . 3 3 Drop 56 | 3 14 1 25 . 1 12 Fire 183 | 23 43 21 8 26 14 48 Melee 54 | . . 18 . . 3 33 Ram 2 | . . . . . 2 . Kick 1 | . . . . 1 . . Crush 3 | . . . . . . 3 Escape Stasis . | . . . . . . . Rewire 22 | . . . 2 . . 20 Trap . | . . . . . . . Miscellaneous . | . . . . . . . Route ------- -11/Scrapyard -10/Materials (discovered 5 exits: [*Mat x2] / [*Min x2] / [*Sub]) -10/Subcaves -7/Scraptown (discovered 2 exits: *Fac x2) -5/Factory -4/Factory -4/Armory History --------- Turn | Location | Event 15 | -11/Scrapyard | Discovered new exit (range 16) 173 | -11/Scrapyard | Entered Materials 242 | -10/Materials | Discovered new exit (range 8) 312 | -10/Materials | Build established: Mutant 341 | -10/Materials | Discovered new exit (range 6) 597 | -10/Materials | Discovered new exit (range 14) 879 | -10/Materials | Discovered new exit (range 8) 1041 | -10/Materials | Discovered new exit (range 4) 1636 | -10/Materials | Entered Subcaves 1637 | -10/Subcaves | Approached by a straggling Scientist 1947 | -10/Subcaves | Disturbed a concealed Subdweller 1947 | -10/Subcaves | Ambushed by Subdweller buried in earth 1968 | -10/Subcaves | Core integrity fell below 50% 2475 | -10/Subcaves | Entered Scraptown 2696 | -7/Scraptown | Heard Great Nut preacher, LISTEN AND RECITE! 2731 | -7/Scraptown | Visited Assassins FH 2777 | -7/Scraptown | Visited Red Mages 2818 | -7/Scraptown | Visited TADAMA 3229 | -7/Scraptown | Discovered new exit (range 11) 3389 | -7/Scraptown | Visited Cyclists 3661 | -7/Scraptown | Visited Awakened 3737 | -7/Scraptown | Visited Shadow of the Wyrm 3759 | -7/Scraptown | Visited The Evicted 3821 | -7/Scraptown | Visited UFD Registry 3821 | -7/Scraptown | Registered with UFD as "Carbonroller" 3901 | -7/Scraptown | Visited Cartography Club 3943 | -7/Scraptown | Visited A0-MCA Data Center 3955 | -7/Scraptown | Given a B rating by A0-MCA 3957 | -7/Scraptown | Found A0-MCA's Component Scanner 4005 | -7/Scraptown | Visited Scrap Suit Storage 4109 | -7/Scraptown | Delivered Scrap Shield to a Scientist 4323 | -7/Scraptown | Visited Observation Area 4363 | -7/Scraptown | Visited DA-N13 Charitable Foundation 4373 | -7/Scraptown | Found DCF Scrap (28 items) 4642 | -7/Scraptown | Visited Junk Repository 4787 | -7/Scraptown | Visited Scrapoid Research Area 4843 | -7/Scraptown | Visited Research Penetration Think Tank 4888 | -7/Scraptown | Visited Analyses Database 5040 | -7/Scraptown | Met Optimus 5040 | -7/Scraptown | Accepted into 0bPrime 5103 | -7/Scraptown | Visited Derelict Rescue Squad 5189 | -7/Scraptown | Civil war broke out across Scraptown 5279 | -7/Scraptown | Lost 4 allies 5283 | -7/Scraptown | Identified exit to Factory 5283 | -7/Scraptown | Found Expert System 5374 | -7/Scraptown | Optimus destroyed in the chaos of civil war 5378 | -7/Scraptown | Entered Factory 5378 | -5/Factory | Evolved 10 slots: Power x1, Propulsion x3, Utility x5, Weapon x1 5662 | -5/Factory | Discovered new exit (range 15) 5741 | -5/Factory | Build established: Derelict-Tank 5741 | -5/Factory | Entered another Factory area 5741 | -4/Factory | Evolved 2 slots: Utility x2 5857 | -4/Factory | Spotted B-86 Titan 5972 | -4/Factory | Discovered new exit (range 11) 5995 | -4/Factory | Core integrity fell below 50% 6005 | -4/Factory | Entered Armory 6025 | -4/Armory | Lost 19 parts (3p7n4u5w) 6175 | -4/Armory | Repaired Plasma Cutter 6255 | -4/Armory | Core integrity fell below 20% 6325 | -4/Armory | Build established: Gladiator 6870 | -4/Armory | Build established: Hauler-Mutant 6871 | -4/Armory | Lost 3 allies 7431 | -4/Armory | System corruption reached 10% 7738 | -4/Armory | Destroyed by H-77 Assassin with Coil Gun Last Messages --------------- 07725_ Slammed into P-70 Sage. 07726_ Penetrated by Slug. 07728_ Slug penetrates Wall. 07728_ P-70 Sage destroyed. 07729_ Slug penetrates H-77 Assassin. 07729_ Penetrated by Slug. 07730_ Humpback destroyed. 07732_ Penetrated by Slug. 07732_ Slug penetrates Wall. 07733_ Penetrated by Slug. 07733_ Slug penetrates Wall. 07734_ Slug penetrates H-77 Assassin. 07734_ Slug penetrates Wall. 07735_ Penetrated by Slug. 07735_ Slug penetrates Wall. 07736_ Penetrated by Slug. 07736_ Arm. Leg destroyed. 07736_ Railgun destroyed. 07738_ Acquired 44 matter. 07738_ Penetrated by Slug. Map ----- +----------------------------------------------------+ | ?????????????????????????????????????????????????? | | ?????????????????????????????????????????????????? | | ?????????????????????????????????????????????????? | | ?????????????????????????????????????????????????? | | ?????????????????????????????????????????????????? | | ?????????????????????????????????????????????????? | | ?????????????????????????????##????????????????### | | ?????????????? ????????????? #????????????????# | | ?????????????? [[?????###### ?????????????????# | | ???????????????[[ ????# ??????????????????# | | ???????????????? ???? #??????????????###### | | ????????????????##+#### #??? ########## # | | ????????????????? h[ ????? "T # | | ??????????????????? %% ???????? "" + | | ???????????????######%;##;###???????% ##### # | | ???????????????# h #???????* ######+##### | | ???????????????# % % #???####%=" | | ???????????????# #???# =[[+ | | ???????????????# """ ##??# # ! = | | ???????????????# """ % ;???# ## | | ???????????????# " " %h ##### ## | | ???????????????# *|*=; ########"###" | | ???????????????# [=; = #?????# [= | | ???????????????# |]! # = #?????# " "" | | ???????????????# "T" |*=*! ; %=! #?????# "]]] | | ???????????????# """ !]|@= #####! *#?????# "]]] | | ???????????????# ]/=|=*#???#% #?????# """" | | ???????????????##############???#!##+####### | | ????????????????????????????????#[# # | | ????????????????????????????????# # """ # | | ????????????????????????????????# # """ # | | ????????????????????????????????# # """ #####"# | | ????????????????????????????????# # + | | ????????????????????????????????# # """ # | | ????????????????????????????????# #[! """ #####+# | | ????????????????????????????????#[#[=! """ #?????? | | ????????????????????????????????# +! [ #?????? | | ??????????????????????????????###+##########?????? | | ??????????????????????????????# | #???????????? | | ??????????????????????????????#!!! " #???????????? | | ??????????????????????????????#!! T #???????????? | | ??????????????????????????????#!! " #???????????? | | ??????????????????????????????# #???????????? | | ??????????????????????????????# ! #???????????? | | ??????????????????????????????###+####???????????? | | ????????????????????????????????# #??????????????? | | ????????????????????????????????# #?????########## | | ????????????????????????????????# #?????# | | ????????????????????????????????# ####### ] | | ????????????????????????????????# + / | +----------------------------------------------------+ Best States ------------- Heat Dissipation 74 Energy Generation 37 Energy Capacity 450 Matter Stores 300 Matter Capacity 500 Sight Range 16 Robot Scan Range 16 Terrain Scan Range 16 Terrain Scan Density 10 ECM Strength 2 Power Amplification 30 Armor Coverage 150 Resistance: KI 20 Resistance: TH 20 Resistance: EX 20 Resistance: EM 20 Resistance: I 20 Resistance: S 20 Resistance: P 20 Phase Shifting 10 Evasion (%) 65 Melee Accuracy 5 Target Analysis 6 Recoil Reduction 3 Energy Filtering 30 Offensive Hacking 20 Item Schematics ----------------- Lrg. Storage Unit | -10/Materials | Hacked Robot Schematics ------------------ None Fabricated ------------ Nothing Repaired ---------- Plasma Cutter | 30% | -4/Armory Studied --------- None Alien Tech Used ----------------- None Achievements -------------- Civilization 2243 DATA ERROR: Steam Global Achievement% Do Not Disturb Fitting Room For Emergencies Only Hammer Time Heavy Suspicion Link The Feds Organ Harvest Overwhelming There's More Where That Came From Uncivil War Wiki Contributor Challenges ------------ None Game ------ Seed AutogunBackupWall Manual? 0 Play Time 00:56:02 Cumulative 259.1 hours Start 2025.11.03 @ 08:08:48 End 2025.11.03 @ 09:37:48 Sessions 1 Manual Loads 0 Difficulty Adventurer Special Mode None Game No. 299 Rogue 0 Adventurer 299 Explorer 0 Win Type - Total 0 Types 0/0/0/0/0/0/0/0/0/0 Lore% 73 Gallery% 59 Achievement% 30 Wizard Run 0 Options --------- Layout 2 ASCII 0 Keyboard 0 Movement Mouse Keybinds 0 Fullscreen 2 Font 48/Smallcaps Map View 50x44 Zoom Use 2% Tactical HUD 1 Map Filters NONE Filters NONE Steam 1 RUN: 276c9c9e-5bb1-43ec-8e61-8376ce3133c3